[Event "Titled Tuesday Blitz March 14 Early 2023"]
[White "Atakhan, Abtin"]
[Black "Ginzburg, Yakov"]
[WhiteFideId "22502203"]
[BlackFideId "4157176"]
[WhiteElo "2008"]
[BlackElo "2305"]
[Result "1-0"]
[Round "09"]
[TimeControl "180+2"]
[Date "2023.03.14"]
[WhiteClock "0:00:07"]
[BlackClock "0:00:03"]

1. c4 {[%clk 0:03:00]}  c6 {[%clk 0:02:59]} 2. Nf3 {[%clk 0:03:00]}  d5 {[%clk 0:02:59]} 3. d4 {[%clk 0:03:00]}  Nf6 {[%clk 0:02:59]} 4. Nc3 {[%clk 0:02:59]}  dxc4 {[%clk 0:02:57]} 5. a4 {[%clk 0:02:59]}  Bf5 {[%clk 0:02:56]} 6. Ne5 {[%clk 0:02:56]}  e6 {[%clk 0:02:57]} 7. f3 {[%clk 0:02:54]}  Bb4 {[%clk 0:02:56]} 8. e4 {[%clk 0:02:52]}  Bxe4 {[%clk 0:02:56]} 9. fxe4 {[%clk 0:02:52]}  Nxe4 {[%clk 0:02:57]} 10. Bd2 {[%clk 0:02:44]}  Qxd4 {[%clk 0:02:56]} 11. Nxe4 {[%clk 0:02:43]}  Qxe4+ {[%clk 0:02:56]} 12. Qe2 {[%clk 0:02:42]}  Bxd2+ {[%clk 0:02:57]} 13. Kxd2 {[%clk 0:02:42]}  c3+ {[%clk 0:02:57]} 14. bxc3 {[%clk 0:02:36]}  Qd5+ {[%clk 0:02:57]} 15. Kc2 {[%clk 0:02:34]}  O-O {[%clk 0:02:54]} 16. h4 {[%clk 0:02:30]}  Na6 {[%clk 0:02:44]} 17. Nc4 {[%clk 0:01:56]}  Nc5 {[%clk 0:02:40]} 18. Qe5 {[%clk 0:01:52]}  Rfd8 {[%clk 0:02:15]} 19. Qxd5 {[%clk 0:01:40]}  cxd5 {[%clk 0:02:16]} 20. Na5 {[%clk 0:01:35]}  Rac8 {[%clk 0:02:13]} 21. Nb3 {[%clk 0:01:22]}  Ne4 {[%clk 0:02:13]} 22. Rh3 {[%clk 0:01:21]}  d4 {[%clk 0:01:27]} 23. c4 {[%clk 0:01:18]}  Nd6 {[%clk 0:01:24]} 24. Nd2 {[%clk 0:01:00]}  e5 {[%clk 0:01:21]} 25. Re1 {[%clk 0:00:59]}  f6 {[%clk 0:01:17]} 26. g4 {[%clk 0:00:53]}  Kf7 {[%clk 0:00:57]} 27. Rb3 {[%clk 0:00:47]}  b6 {[%clk 0:00:56]} 28. Rb4 {[%clk 0:00:34]}  Rc7 {[%clk 0:00:50]} 29. Bg2 {[%clk 0:00:32]}  Nb7 {[%clk 0:00:27]} 30. Bxb7 {[%clk 0:00:32]}  Rxb7 {[%clk 0:00:28]} 31. a5 {[%clk 0:00:27]}  g6 {[%clk 0:00:21]} 32. Kd3 {[%clk 0:00:25]}  Ke6 {[%clk 0:00:17]} 33. Ne4 {[%clk 0:00:24]}  Rc8 {[%clk 0:00:16]} 34. axb6 {[%clk 0:00:21]}  axb6 {[%clk 0:00:16]} 35. Reb1 {[%clk 0:00:19]}  Rc6 {[%clk 0:00:15]} 36. Rb5 {[%clk 0:00:15]}  f5 {[%clk 0:00:14]} 37. Nc5+ {[%clk 0:00:11]}  Rxc5 {[%clk 0:00:14]} 38. Rxc5 {[%clk 0:00:12]}  e4+ {[%clk 0:00:14]} 39. Kd2 {[%clk 0:00:10]}  bxc5 {[%clk 0:00:11]} 40. Rxb7 {[%clk 0:00:10]}  f4 {[%clk 0:00:11]} 41. Rxh7 {[%clk 0:00:09]}  f3 {[%clk 0:00:10]} 42. Rh8 {[%clk 0:00:05]}  e3+ {[%clk 0:00:08]} 43. Kd3 {[%clk 0:00:05]}  f2 {[%clk 0:00:09]} 44. Rf8 {[%clk 0:00:05]}  Ke7 {[%clk 0:00:08]} 45. Rf3 {[%clk 0:00:05]}  Ke6 {[%clk 0:00:06]} 46. h5 {[%clk 0:00:06]}  gxh5 {[%clk 0:00:04]} 47. gxh5 {[%clk 0:00:06]}  Ke7 {[%clk 0:00:05]} 48. h6 {[%clk 0:00:07]}  Ke6 {[%clk 0:00:03]} 49. h7 {[%clk 0:00:07]} 1-0


[Site "https://www.chess.com"]

[Event "Titled Tuesday Blitz March 14 Early 2023"]
[White "Gontcharov, Vladislav"]
[Black "Buksa, Nataliya"]
[WhiteFideId "4123492"]
[BlackFideId "14123622"]
[WhiteElo "2470"]
[BlackElo "2316"]
[Result "1-0"]
[Round "09"]
[TimeControl "180+2"]
[Date "2023.03.14"]
[WhiteClock "0:01:35"]
[BlackClock "0:00:23"]

1. d4 {[%clk 0:03:00]}  d5 {[%clk 0:02:55]} 2. c4 {[%clk 0:03:00]}  e6 {[%clk 0:02:55]} 3. Nc3 {[%clk 0:03:00]}  Nf6 {[%clk 0:02:55]} 4. Bg5 {[%clk 0:03:00]}  Be7 {[%clk 0:02:54]} 5. e3 {[%clk 0:03:00]}  h6 {[%clk 0:02:54]} 6. Bh4 {[%clk 0:02:57]}  O-O {[%clk 0:02:54]} 7. Rc1 {[%clk 0:02:56]}  c6 {[%clk 0:02:53]} 8. Nf3 {[%clk 0:02:51]}  Ne4 {[%clk 0:02:53]} 9. Bxe7 {[%clk 0:02:48]}  Qxe7 {[%clk 0:02:53]} 10. Bd3 {[%clk 0:02:47]}  Nxc3 {[%clk 0:02:53]} 11. Rxc3 {[%clk 0:02:46]}  dxc4 {[%clk 0:02:53]} 12. Bxc4 {[%clk 0:02:44]}  b6 {[%clk 0:02:45]} 13. O-O {[%clk 0:02:42]}  Bb7 {[%clk 0:02:45]} 14. Bd3 {[%clk 0:02:31]}  Nd7 {[%clk 0:02:45]} 15. Be4 {[%clk 0:02:31]}  Rac8 {[%clk 0:02:45]} 16. Qc2 {[%clk 0:02:22]}  Qd6 {[%clk 0:02:45]} 17. Rc1 {[%clk 0:02:19]}  Nf6 {[%clk 0:01:34]} 18. Bxc6 {[%clk 0:02:14]}  Bxc6 {[%clk 0:01:35]} 19. Rxc6 {[%clk 0:02:14]}  Rxc6 {[%clk 0:01:36]} 20. Qxc6 {[%clk 0:02:14]}  Qb4 {[%clk 0:01:36]} 21. Qc3 {[%clk 0:02:08]}  Qa4 {[%clk 0:01:33]} 22. a3 {[%clk 0:02:08]}  Nd5 {[%clk 0:01:33]} 23. Qc2 {[%clk 0:02:08]}  Qb5 {[%clk 0:01:29]} 24. Ne5 {[%clk 0:02:07]}  Ne7 {[%clk 0:01:22]} 25. h3 {[%clk 0:02:00]}  Rc8 {[%clk 0:01:13]} 26. Qd2 {[%clk 0:01:57]}  Rxc1+ {[%clk 0:01:06]} 27. Qxc1 {[%clk 0:01:56]}  f6 {[%clk 0:01:01]} 28. Qc4 {[%clk 0:01:52]}  Qxb2 {[%clk 0:00:40]} 29. Qxe6+ {[%clk 0:01:50]}  Kh7 {[%clk 0:00:40]} 30. Qxe7 {[%clk 0:01:46]}  fxe5 {[%clk 0:00:39]} 31. dxe5 {[%clk 0:01:46]}  a5 {[%clk 0:00:35]} 32. e6 {[%clk 0:01:41]}  Qa1+ {[%clk 0:00:32]} 33. Kh2 {[%clk 0:01:39]}  Qe5+ {[%clk 0:00:33]} 34. g3 {[%clk 0:01:39]}  Qf5 {[%clk 0:00:33]} 35. Qf7 {[%clk 0:01:39]}  Qd5 {[%clk 0:00:29]} 36. e4 {[%clk 0:01:36]}  Qxe4 {[%clk 0:00:23]} 37. e7 {[%clk 0:01:35]} 1-0


[Site "https://www.chess.com"]

[Event "Titled Tuesday Blitz March 14 Early 2023"]
[White "Cherniaiev, Tykhon"]
[Black "Degenbaev, Aziz"]
[WhiteFideId "14182360"]
[BlackFideId "13802640"]
[WhiteElo "2450"]
[BlackElo "2152"]
[Result "1-0"]
[Round "09"]
[TimeControl "180+2"]
[Date "2023.03.14"]
[WhiteClock "0:00:02"]
[BlackClock "0:00:03"]

1. Nf3 {[%clk 0:03:00]}  Nf6 {[%clk 0:02:54]} 2. d4 {[%clk 0:03:00]}  g6 {[%clk 0:02:54]} 3. c4 {[%clk 0:03:00]}  Bg7 {[%clk 0:02:55]} 4. Nc3 {[%clk 0:03:00]}  O-O {[%clk 0:02:55]} 5. e4 {[%clk 0:03:00]}  d6 {[%clk 0:02:55]} 6. Be2 {[%clk 0:03:00]}  e5 {[%clk 0:02:55]} 7. O-O {[%clk 0:02:58]}  Nc6 {[%clk 0:02:55]} 8. dxe5 {[%clk 0:02:45]}  dxe5 {[%clk 0:02:55]} 9. Qxd8 {[%clk 0:02:46]}  Rxd8 {[%clk 0:02:56]} 10. Bg5 {[%clk 0:02:46]}  Re8 {[%clk 0:02:11]} 11. Nd5 {[%clk 0:02:45]}  Nxd5 {[%clk 0:02:08]} 12. cxd5 {[%clk 0:02:46]}  Nd4 {[%clk 0:02:08]} 13. Nxd4 {[%clk 0:02:46]}  exd4 {[%clk 0:02:09]} 14. Bd3 {[%clk 0:02:46]}  c6 {[%clk 0:01:56]} 15. dxc6 {[%clk 0:02:45]}  bxc6 {[%clk 0:01:57]} 16. Rac1 {[%clk 0:02:46]}  Rb8 {[%clk 0:01:55]} 17. b3 {[%clk 0:02:44]}  Bb7 {[%clk 0:01:49]} 18. Rfd1 {[%clk 0:02:42]}  Rbc8 {[%clk 0:01:47]} 19. f3 {[%clk 0:02:33]}  Re5 {[%clk 0:01:19]} 20. Bf4 {[%clk 0:02:29]}  Ra5 {[%clk 0:01:18]} 21. Rc2 {[%clk 0:02:28]}  c5 {[%clk 0:01:05]} 22. Bd2 {[%clk 0:01:10]}  Ra3 {[%clk 0:01:02]} 23. Rdc1 {[%clk 0:01:03]}  Bf8 {[%clk 0:00:58]} 24. Kf2 {[%clk 0:00:56]}  a5 {[%clk 0:00:37]} 25. Bb5 {[%clk 0:00:34]}  Bc6 {[%clk 0:00:22]} 26. Bc4 {[%clk 0:00:31]}  a4 {[%clk 0:00:20]} 27. Ke2 {[%clk 0:00:30]}  axb3 {[%clk 0:00:19]} 28. axb3 {[%clk 0:00:31]}  Rb8 {[%clk 0:00:17]} 29. Kd3 {[%clk 0:00:22]}  Bb5 {[%clk 0:00:17]} 30. Rb1 {[%clk 0:00:18]}  Bxc4+ {[%clk 0:00:15]} 31. Kxc4 {[%clk 0:00:19]}  f5 {[%clk 0:00:09]} 32. exf5 {[%clk 0:00:14]}  gxf5 {[%clk 0:00:10]} 33. g4 {[%clk 0:00:13]}  fxg4 {[%clk 0:00:07]} 34. fxg4 {[%clk 0:00:14]}  Ra6 {[%clk 0:00:07]} 35. Rf1 {[%clk 0:00:09]}  Rab6 {[%clk 0:00:06]} 36. Rf3 {[%clk 0:00:09]}  Re8 {[%clk 0:00:04]} 37. Ba5 {[%clk 0:00:05]}  Rb7 {[%clk 0:00:03]} 38. Rcf2 {[%clk 0:00:04]}  Bd6 {[%clk 0:00:03]} 39. h4 {[%clk 0:00:02]} 1-0


[Site "https://www.chess.com"]

[Event "Titled Tuesday Blitz March 14 Early 2023"]
[White "Rodchenkov, Sergey D."]
[Black "Starozhilov, Leonid"]
[WhiteFideId "4168712"]
[BlackFideId "14106752"]
[WhiteElo "2277"]
[BlackElo "2402"]
[Result "0-1"]
[Round "09"]
[TimeControl "180+2"]
[Date "2023.03.14"]
[WhiteClock "0:00:04"]
[BlackClock "0:01:01"]

1. e4 {[%clk 0:03:00]}  g6 {[%clk 0:02:58]} 2. d4 {[%clk 0:03:00]}  Bg7 {[%clk 0:02:57]} 3. Nc3 {[%clk 0:03:01]}  d6 {[%clk 0:02:58]} 4. Be3 {[%clk 0:03:01]}  a6 {[%clk 0:02:58]} 5. h4 {[%clk 0:03:00]}  h5 {[%clk 0:02:58]} 6. Nh3 {[%clk 0:03:00]}  Bxh3 {[%clk 0:02:57]} 7. Rxh3 {[%clk 0:03:01]}  Nc6 {[%clk 0:02:57]} 8. d5 {[%clk 0:02:45]}  Ne5 {[%clk 0:02:57]} 9. Bd4 {[%clk 0:02:42]}  Nf6 {[%clk 0:02:57]} 10. f4 {[%clk 0:02:37]}  Neg4 {[%clk 0:02:37]} 11. Be2 {[%clk 0:02:33]}  c5 {[%clk 0:02:28]} 12. dxc6 {[%clk 0:01:59]}  bxc6 {[%clk 0:02:29]} 13. Bxg4 {[%clk 0:02:00]}  hxg4 {[%clk 0:02:27]} 14. Rh1 {[%clk 0:02:00]}  Qa5 {[%clk 0:02:20]} 15. e5 {[%clk 0:01:17]}  dxe5 {[%clk 0:01:53]} 16. fxe5 {[%clk 0:00:53]}  Rd8 {[%clk 0:01:52]} 17. Rf1 {[%clk 0:00:18]}  O-O {[%clk 0:01:31]} 18. exf6 {[%clk 0:00:17]}  Bxf6 {[%clk 0:01:31]} 19. Rxf6 {[%clk 0:00:17]}  exf6 {[%clk 0:01:31]} 20. Qxg4 {[%clk 0:00:15]}  Qb4 {[%clk 0:01:17]} 21. Rd1 {[%clk 0:00:14]}  c5 {[%clk 0:01:17]} 22. a3 {[%clk 0:00:10]}  Rxd4 {[%clk 0:01:15]} 23. axb4 {[%clk 0:00:04]}  Rxg4 {[%clk 0:01:15]} 24. bxc5 {[%clk 0:00:04]}  Re8+ {[%clk 0:01:14]} 25. Kf1 {[%clk 0:00:04]}  Rxh4 {[%clk 0:01:00]} 26. Nd5 {[%clk 0:00:04]}  Rh1+ {[%clk 0:01:00]} 27. Kf2 {[%clk 0:00:04]}  Rxd1 {[%clk 0:01:01]} 28. Nxf6+ {[%clk 0:00:04]}  Kf8 {[%clk 0:01:01]} 0-1


[Site "https://www.chess.com"]

[Event "Titled Tuesday Blitz March 14 Early 2023"]
[White "littlepillow2010"]
[Black "Kim, Sergey"]
[BlackFideId "13700570"]
[WhiteElo "2409"]
[BlackElo "2611"]
[Result "1-0"]
[Round "09"]
[TimeControl "180+2"]
[Date "2023.03.14"]
[WhiteClock "0:00:02"]
[BlackClock "0:00:19"]

1. e4 {[%clk 0:03:00]}  e5 {[%clk 0:03:00]} 2. Nf3 {[%clk 0:03:00]}  Nc6 {[%clk 0:03:00]} 3. Bb5 {[%clk 0:03:00]}  a6 {[%clk 0:03:00]} 4. Ba4 {[%clk 0:03:00]}  Nf6 {[%clk 0:03:00]} 5. O-O {[%clk 0:03:00]}  b5 {[%clk 0:03:01]} 6. Bb3 {[%clk 0:03:00]}  Bc5 {[%clk 0:03:01]} 7. c3 {[%clk 0:02:55]}  d6 {[%clk 0:03:01]} 8. a4 {[%clk 0:02:55]}  Rb8 {[%clk 0:03:00]} 9. d4 {[%clk 0:02:54]}  Bb6 {[%clk 0:03:00]} 10. axb5 {[%clk 0:02:53]}  axb5 {[%clk 0:03:00]} 11. Na3 {[%clk 0:02:54]}  Bg4 {[%clk 0:02:48]} 12. Nxb5 {[%clk 0:02:53]}  O-O {[%clk 0:02:48]} 13. Re1 {[%clk 0:02:53]}  h6 {[%clk 0:02:45]} 14. d5 {[%clk 0:02:31]}  Ne7 {[%clk 0:02:44]} 15. c4 {[%clk 0:02:22]}  Ng6 {[%clk 0:02:39]} 16. h3 {[%clk 0:02:12]}  Bd7 {[%clk 0:02:38]} 17. Ba4 {[%clk 0:02:06]}  Nh5 {[%clk 0:02:35]} 18. Be3 {[%clk 0:01:47]}  Nhf4 {[%clk 0:02:34]} 19. Bxb6 {[%clk 0:01:41]}  Rxb6 {[%clk 0:02:34]} 20. Qb3 {[%clk 0:01:21]}  f5 {[%clk 0:02:18]} 21. c5 {[%clk 0:00:35]}  Rb8 {[%clk 0:02:18]} 22. c6 {[%clk 0:00:29]}  Bc8 {[%clk 0:02:18]} 23. exf5 {[%clk 0:00:14]}  Bxf5 {[%clk 0:02:17]} 24. Qe3 {[%clk 0:00:13]}  Kh8 {[%clk 0:01:51]} 25. Ra2 {[%clk 0:00:13]}  Nxd5 {[%clk 0:01:49]} 26. Qd2 {[%clk 0:00:11]}  Nb6 {[%clk 0:01:47]} 27. Bd1 {[%clk 0:00:07]}  Be6 {[%clk 0:01:40]} 28. Ra1 {[%clk 0:00:07]}  Nc4 {[%clk 0:01:40]} 29. Qb4 {[%clk 0:00:07]}  Nf4 {[%clk 0:01:32]} 30. b3 {[%clk 0:00:04]}  Nb6 {[%clk 0:01:30]} 31. Qd2 {[%clk 0:00:03]}  Nbd5 {[%clk 0:01:27]} 32. Nc3 {[%clk 0:00:04]}  Qf6 {[%clk 0:01:24]} 33. Ne4 {[%clk 0:00:03]}  Qg6 {[%clk 0:01:21]} 34. Nh4 {[%clk 0:00:03]}  Qf7 {[%clk 0:01:16]} 35. Kh2 {[%clk 0:00:04]}  Qe7 {[%clk 0:01:00]} 36. Nf3 {[%clk 0:00:03]}  Bf5 {[%clk 0:00:54]} 37. Ra7 {[%clk 0:00:03]}  Ra8 {[%clk 0:00:46]} 38. Rxa8 {[%clk 0:00:02]}  Rxa8 {[%clk 0:00:45]} 39. g3 {[%clk 0:00:02]}  Nxh3 {[%clk 0:00:37]} 40. Qxd5 {[%clk 0:00:01]}  Bxe4 {[%clk 0:00:34]} 41. Qxe4 {[%clk 0:00:02]}  Nxf2 {[%clk 0:00:33]} 42. Qh4 {[%clk 0:00:02]}  Qe8 {[%clk 0:00:28]} 43. Be2 {[%clk 0:00:02]}  Qxc6 {[%clk 0:00:25]} 44. Rf1 {[%clk 0:00:02]}  Qb6 {[%clk 0:00:22]} 45. g4 {[%clk 0:00:01]}  Ne4 {[%clk 0:00:20]} 46. Kh1 {[%clk 0:00:02]}  Ra2 {[%clk 0:00:20]} 47. Bd3 {[%clk 0:00:02]}  Nf2+ {[%clk 0:00:19]} 48. Rxf2 {[%clk 0:00:02]}  Qxf2 {[%clk 0:00:19]} 49. Qd8# {[%clk 0:00:02]} 1-0


[Site "https://www.chess.com"]

[Event "Titled Tuesday Blitz March 14 Early 2023"]
[White "polandchessplayer"]
[Black "Valle Maytin, Luis Enrique"]
[BlackFideId "3503666"]
[WhiteElo "2597"]
[BlackElo "2225"]
[Result "1-0"]
[Round "09"]
[TimeControl "180+2"]
[Date "2023.03.14"]
[WhiteClock "0:00:02"]
[BlackClock "0:00:10"]

1. d4 {[%clk 0:02:57]}  Nf6 {[%clk 0:02:58]} 2. c4 {[%clk 0:02:55]}  e6 {[%clk 0:02:58]} 3. Nc3 {[%clk 0:02:53]}  Bb4 {[%clk 0:02:58]} 4. e3 {[%clk 0:02:53]}  O-O {[%clk 0:02:55]} 5. Bd2 {[%clk 0:02:52]}  d5 {[%clk 0:02:55]} 6. Nf3 {[%clk 0:02:51]}  Nbd7 {[%clk 0:02:49]} 7. Rc1 {[%clk 0:02:49]}  a6 {[%clk 0:02:45]} 8. Bd3 {[%clk 0:02:46]}  dxc4 {[%clk 0:02:44]} 9. Bxc4 {[%clk 0:02:47]}  b5 {[%clk 0:02:43]} 10. Bd3 {[%clk 0:02:48]}  Bb7 {[%clk 0:02:43]} 11. O-O {[%clk 0:02:47]}  Rc8 {[%clk 0:02:28]} 12. a4 {[%clk 0:02:33]}  c6 {[%clk 0:01:55]} 13. e4 {[%clk 0:02:28]}  c5 {[%clk 0:01:37]} 14. e5 {[%clk 0:02:15]}  Bxc3 {[%clk 0:01:20]} 15. bxc3 {[%clk 0:02:10]}  Be4 {[%clk 0:01:07]} 16. Bg5 {[%clk 0:01:58]}  Bxd3 {[%clk 0:01:07]} 17. exf6 {[%clk 0:01:55]}  gxf6 {[%clk 0:01:06]} 18. Bh6 {[%clk 0:01:53]}  Bxf1 {[%clk 0:01:01]} 19. Qxf1 {[%clk 0:01:41]}  Kh8 {[%clk 0:00:56]} 20. Bxf8 {[%clk 0:01:34]}  Nxf8 {[%clk 0:00:56]} 21. a5 {[%clk 0:01:35]}  Ng6 {[%clk 0:00:53]} 22. h4 {[%clk 0:01:31]}  h5 {[%clk 0:00:40]} 23. Qe2 {[%clk 0:01:27]}  cxd4 {[%clk 0:00:35]} 24. Nxd4 {[%clk 0:01:28]}  Rc5 {[%clk 0:00:35]} 25. Rd1 {[%clk 0:01:20]}  Qxa5 {[%clk 0:00:30]} 26. Nb3 {[%clk 0:01:04]}  Qxc3 {[%clk 0:00:26]} 27. Nxc5 {[%clk 0:00:47]}  Qxc5 {[%clk 0:00:25]} 28. Qf3 {[%clk 0:00:44]}  Kg7 {[%clk 0:00:23]} 29. g3 {[%clk 0:00:44]}  a5 {[%clk 0:00:19]} 30. Qb7 {[%clk 0:00:27]}  a4 {[%clk 0:00:17]} 31. Rb1 {[%clk 0:00:27]}  Ne5 {[%clk 0:00:15]} 32. Qxb5 {[%clk 0:00:25]}  Qc2 {[%clk 0:00:14]} 33. Ra1 {[%clk 0:00:20]}  Ng4 {[%clk 0:00:13]} 34. Rf1 {[%clk 0:00:21]}  Ne5 {[%clk 0:00:12]} 35. Ra1 {[%clk 0:00:20]}  Qe4 {[%clk 0:00:12]} 36. Qxa4 {[%clk 0:00:13]}  Nf3+ {[%clk 0:00:12]} 37. Kf1 {[%clk 0:00:08]}  Nd2+ {[%clk 0:00:12]} 38. Kg1 {[%clk 0:00:08]}  Nf3+ {[%clk 0:00:12]} 39. Kh1 {[%clk 0:00:09]}  Nd4+ {[%clk 0:00:12]} 40. Kh2 {[%clk 0:00:07]}  Nf3+ {[%clk 0:00:11]} 41. Kh3 {[%clk 0:00:06]}  Qf5+ {[%clk 0:00:11]} 42. Kg2 {[%clk 0:00:07]}  Ne5 {[%clk 0:00:11]} 43. Qf4 {[%clk 0:00:07]}  Qd3 {[%clk 0:00:10]} 44. Re1 {[%clk 0:00:08]}  Qd5+ {[%clk 0:00:10]} 45. Qe4 {[%clk 0:00:08]}  Qd6 {[%clk 0:00:09]} 46. Re2 {[%clk 0:00:08]}  Nd7 {[%clk 0:00:09]} 47. Qf3 {[%clk 0:00:07]}  Ne5 {[%clk 0:00:09]} 48. Qxh5 {[%clk 0:00:07]}  Qd5+ {[%clk 0:00:09]} 49. f3 {[%clk 0:00:06]}  Qd1 {[%clk 0:00:09]} 50. Rf2 {[%clk 0:00:06]}  Nd3 {[%clk 0:00:08]} 51. Qb5 {[%clk 0:00:01]}  Nxf2 {[%clk 0:00:08]} 52. Kxf2 {[%clk 0:00:02]}  Qd2+ {[%clk 0:00:08]} 53. Qe2 {[%clk 0:00:03]}  Qd4+ {[%clk 0:00:08]} 54. Qe3 {[%clk 0:00:03]}  Qb2+ {[%clk 0:00:08]} 55. Kg1 {[%clk 0:00:03]}  Qb1+ {[%clk 0:00:09]} 56. Kg2 {[%clk 0:00:03]}  Qc2+ {[%clk 0:00:09]} 57. Kh3 {[%clk 0:00:04]}  Qd1 {[%clk 0:00:10]} 58. Kg2 {[%clk 0:00:02]}  Qc2+ {[%clk 0:00:10]} 59. Qf2 {[%clk 0:00:03]}  Qd1 {[%clk 0:00:10]} 60. g4 {[%clk 0:00:03]}  Qd5 {[%clk 0:00:11]} 61. Kg3 {[%clk 0:00:03]}  Qd1 {[%clk 0:00:11]} 62. h5 {[%clk 0:00:03]}  Qd6+ {[%clk 0:00:12]} 63. Kg2 {[%clk 0:00:03]}  Qd5 {[%clk 0:00:12]} 64. Qh4 {[%clk 0:00:03]}  Qg5 {[%clk 0:00:12]} 65. Qg3 {[%clk 0:00:03]}  Qd5 {[%clk 0:00:11]} 66. Kh3 {[%clk 0:00:03]}  e5 {[%clk 0:00:11]} 67. g5 {[%clk 0:00:01]}  Qe6+ {[%clk 0:00:12]} 68. Kh4 {[%clk 0:00:01]}  fxg5+ {[%clk 0:00:12]} 69. Qxg5+ {[%clk 0:00:02]}  Kh7 {[%clk 0:00:12]} 70. Qg4 {[%clk 0:00:02]}  Qf6+ {[%clk 0:00:12]} 71. Kg3 {[%clk 0:00:02]}  Qh6 {[%clk 0:00:09]} 72. Qf5+ {[%clk 0:00:02]}  Kg7 {[%clk 0:00:09]} 73. Kg4 {[%clk 0:00:02]}  Qf6 {[%clk 0:00:09]} 74. Qe4 {[%clk 0:00:03]}  Qe6+ {[%clk 0:00:09]} 75. Kg5 {[%clk 0:00:03]}  f6+ {[%clk 0:00:09]} 76. Kh4 {[%clk 0:00:03]}  f5 {[%clk 0:00:09]} 77. Qb7+ {[%clk 0:00:03]}  Kh6 {[%clk 0:00:09]} 78. Qc7 {[%clk 0:00:03]}  Qf6+ {[%clk 0:00:10]} 79. Kg3 {[%clk 0:00:04]}  Kxh5 {[%clk 0:00:10]} 80. Qc8 {[%clk 0:00:03]}  Qg6+ {[%clk 0:00:10]} 81. Kf2 {[%clk 0:00:03]}  Kg5 {[%clk 0:00:10]} 82. Qd8+ {[%clk 0:00:03]}  Kf4 {[%clk 0:00:10]} 83. Qd2# {[%clk 0:00:02]} 1-0


[Site "https://www.chess.com"]

[Event "Titled Tuesday Blitz March 14 Early 2023"]
[White "Klepikov, Nikita"]
[Black "Vlassov, Nikolai"]
[WhiteFideId "24145220"]
[BlackFideId "4103360"]
[WhiteElo "2025"]
[BlackElo "2324"]
[Result "0-1"]
[Round "09"]
[TimeControl "180+2"]
[Date "2023.03.14"]
[WhiteClock "0:00:04"]
[BlackClock "0:00:44"]

1. e4 {[%clk 0:03:00]}  c5 {[%clk 0:02:59]} 2. Nf3 {[%clk 0:03:00]}  d6 {[%clk 0:02:59]} 3. d4 {[%clk 0:03:01]}  cxd4 {[%clk 0:02:59]} 4. Nxd4 {[%clk 0:03:02]}  Nf6 {[%clk 0:02:59]} 5. Nc3 {[%clk 0:03:02]}  g6 {[%clk 0:02:59]} 6. Be3 {[%clk 0:02:56]}  a6 {[%clk 0:02:59]} 7. a4 {[%clk 0:02:38]}  Nbd7 {[%clk 0:02:58]} 8. Be2 {[%clk 0:02:18]}  Qc7 {[%clk 0:02:56]} 9. O-O {[%clk 0:02:13]}  Bg7 {[%clk 0:02:54]} 10. a5 {[%clk 0:02:05]}  O-O {[%clk 0:02:53]} 11. f4 {[%clk 0:01:47]}  b5 {[%clk 0:02:38]} 12. axb6 {[%clk 0:01:41]}  Nxb6 {[%clk 0:02:38]} 13. Qd3 {[%clk 0:01:15]}  e5 {[%clk 0:02:27]} 14. Nb3 {[%clk 0:01:11]}  Be6 {[%clk 0:02:21]} 15. Na5 {[%clk 0:01:05]}  d5 {[%clk 0:02:09]} 16. fxe5 {[%clk 0:00:57]}  Nxe4 {[%clk 0:02:01]} 17. Nxe4 {[%clk 0:00:46]}  dxe4 {[%clk 0:02:00]} 18. Qxe4 {[%clk 0:00:47]}  Bxe5 {[%clk 0:01:53]} 19. Kh1 {[%clk 0:00:47]}  Nd5 {[%clk 0:01:23]} 20. Bh6 {[%clk 0:00:37]}  Rfe8 {[%clk 0:01:17]} 21. Nc4 {[%clk 0:00:37]}  Bxh2 {[%clk 0:01:05]} 22. Qd4 {[%clk 0:00:37]}  f6 {[%clk 0:01:05]} 23. Rxf6 {[%clk 0:00:16]}  Nxf6 {[%clk 0:01:03]} 24. Qxf6 {[%clk 0:00:17]}  Qf7 {[%clk 0:00:54]} 25. Qd4 {[%clk 0:00:08]}  Rad8 {[%clk 0:00:53]} 26. Qc3 {[%clk 0:00:06]}  Bb8 {[%clk 0:00:46]} 27. Rf1 {[%clk 0:00:05]}  Qc7 {[%clk 0:00:45]} 28. b3 {[%clk 0:00:04]}  Qh2# {[%clk 0:00:44]} 0-1


[Site "https://www.chess.com"]

[Event "Titled Tuesday Blitz March 14 Early 2023"]
[White "Garv Gaur"]
[Black "Tarasova, Viktoriya"]
[WhiteFideId "45030839"]
[BlackFideId "4175840"]
[WhiteElo "2068"]
[BlackElo "2182"]
[Result "0-1"]
[Round "09"]
[TimeControl "180+2"]
[Date "2023.03.14"]
[WhiteClock "0:00:31"]
[BlackClock "0:00:08"]

1. Nf3 {[%clk 0:02:57]}  Nf6 {[%clk 0:02:58]} 2. g3 {[%clk 0:02:57]}  b6 {[%clk 0:02:57]} 3. Bg2 {[%clk 0:02:57]}  Bb7 {[%clk 0:02:58]} 4. O-O {[%clk 0:02:57]}  c5 {[%clk 0:02:58]} 5. b3 {[%clk 0:02:55]}  e6 {[%clk 0:02:57]} 6. Bb2 {[%clk 0:02:55]}  Be7 {[%clk 0:02:58]} 7. c4 {[%clk 0:02:50]}  O-O {[%clk 0:02:57]} 8. d4 {[%clk 0:02:50]}  cxd4 {[%clk 0:02:57]} 9. Qxd4 {[%clk 0:02:50]}  Nc6 {[%clk 0:02:56]} 10. Qd2 {[%clk 0:02:50]}  Qc7 {[%clk 0:02:55]} 11. Nc3 {[%clk 0:02:49]}  a6 {[%clk 0:02:54]} 12. Rfd1 {[%clk 0:02:48]}  Rfd8 {[%clk 0:02:53]} 13. Rac1 {[%clk 0:02:47]}  Rac8 {[%clk 0:02:49]} 14. h4 {[%clk 0:02:30]}  Qb8 {[%clk 0:02:47]} 15. Qe3 {[%clk 0:02:24]}  Ba8 {[%clk 0:02:42]} 16. Qd3 {[%clk 0:02:08]}  d5 {[%clk 0:02:19]} 17. cxd5 {[%clk 0:02:08]}  Nb4 {[%clk 0:02:19]} 18. Qd4 {[%clk 0:02:03]}  Bc5 {[%clk 0:02:09]} 19. Qf4 {[%clk 0:01:56]}  Qxf4 {[%clk 0:02:08]} 20. gxf4 {[%clk 0:01:57]}  Nbxd5 {[%clk 0:02:05]} 21. e3 {[%clk 0:01:50]}  Nxc3 {[%clk 0:02:00]} 22. Bxc3 {[%clk 0:01:47]}  Ba3 {[%clk 0:01:52]} 23. Rxd8+ {[%clk 0:01:43]}  Rxd8 {[%clk 0:01:52]} 24. Bxf6 {[%clk 0:01:37]}  gxf6 {[%clk 0:01:47]} 25. Rc7 {[%clk 0:01:37]}  Bc5 {[%clk 0:01:37]} 26. Kh2 {[%clk 0:01:27]}  a5 {[%clk 0:01:34]} 27. Kg3 {[%clk 0:01:24]}  Be4 {[%clk 0:01:27]} 28. Bf1 {[%clk 0:01:15]}  Rd1 {[%clk 0:01:09]} 29. Bc4 {[%clk 0:01:04]}  Bxf3 {[%clk 0:00:29]} 30. Kxf3 {[%clk 0:01:03]}  Rh1 {[%clk 0:00:29]} 31. Kg3 {[%clk 0:01:02]}  Rg1+ {[%clk 0:00:30]} 32. Kh2 {[%clk 0:01:02]}  Rd1 {[%clk 0:00:17]} 33. Kg3 {[%clk 0:00:58]}  Rg1+ {[%clk 0:00:15]} 34. Kf3 {[%clk 0:00:56]}  Rh1 {[%clk 0:00:13]} 35. f5 {[%clk 0:00:57]}  Rxh4 {[%clk 0:00:10]} 36. fxe6 {[%clk 0:00:56]}  fxe6 {[%clk 0:00:11]} 37. Bxe6+ {[%clk 0:00:57]}  Kf8 {[%clk 0:00:10]} 38. Kg3 {[%clk 0:00:52]}  Rh6 {[%clk 0:00:08]} 39. Bf5 {[%clk 0:00:48]}  Bd6+ {[%clk 0:00:07]} 40. Kg4 {[%clk 0:00:39]}  Bxc7 {[%clk 0:00:08]} 41. Be4 {[%clk 0:00:38]}  Ke7 {[%clk 0:00:09]} 42. Bd3 {[%clk 0:00:36]}  Rh2 {[%clk 0:00:09]} 43. Kf3 {[%clk 0:00:36]}  Rh1 {[%clk 0:00:09]} 44. Be4 {[%clk 0:00:34]}  Ra1 {[%clk 0:00:08]} 45. a4 {[%clk 0:00:34]}  h5 {[%clk 0:00:09]} 46. Bg6 {[%clk 0:00:33]}  h4 {[%clk 0:00:09]} 47. Bd3 {[%clk 0:00:33]}  Rg1 {[%clk 0:00:08]} 48. Bf5 {[%clk 0:00:32]}  Kd6 {[%clk 0:00:08]} 49. Bc8 {[%clk 0:00:32]}  Kc5 {[%clk 0:00:09]} 50. Be6 {[%clk 0:00:32]}  Kb4 {[%clk 0:00:09]} 51. Bc4 {[%clk 0:00:31]}  h3 {[%clk 0:00:08]} 0-1


[Site "https://www.chess.com"]